[Event "*** SCC Grand Prix: Titled Tuesday Blitz"]
[Site "Chess.com"]
[Date "2020.06.23"]
[Round "2"]
[White "Lenyas66"]
[Black "abykhovsky"]
[Result "1-0"]
[WhiteElo "2515"]
[BlackElo "2715"]
[TimeControl "180+1"]
[EndTime "10:18:15 PDT"]
[Termination "Lenyas66 won by resignation"]

1. e4 {[%clk 0:03:00.9]} 1... c5 {[%clk 0:02:37.1]} 2. Nf3 {[%clk 0:02:58.5]}
2... d6 {[%clk 0:02:36.1]} 3. Bb5+ {[%clk 0:02:58.1]} 3... Nc6 {[%clk 0:02:36]}
4. O-O {[%clk 0:02:56.4]} 4... Bd7 {[%clk 0:02:36]} 5. Re1 {[%clk 0:02:55.5]}
5... a6 {[%clk 0:02:35.6]} 6. Bc4 {[%clk 0:02:51.6]} 6... b5 {[%clk 0:02:33.3]}
7. Bf1 {[%clk 0:02:51.5]} 7... Bg4 {[%clk 0:02:30.9]} 8. c3 {[%clk 0:02:50.5]}
8... Nf6 {[%clk 0:02:27.6]} 9. a4 {[%clk 0:02:50.4]} 9... b4 {[%clk 0:02:27.5]}
10. d4 {[%clk 0:02:49.8]} 10... cxd4 {[%clk 0:02:23.9]} 11. cxd4 {[%clk
0:02:49.6]} 11... Bxf3 {[%clk 0:02:24]} 12. gxf3 {[%clk 0:02:49]} 12... e5
{[%clk 0:02:21.3]} 13. d5 {[%clk 0:02:49.2]} 13... Nb8 {[%clk 0:02:19.4]} 14. a5
{[%clk 0:02:46.5]} 14... Nbd7 {[%clk 0:02:18]} 15. Qa4 {[%clk 0:02:43.1]} 15...
Be7 {[%clk 0:02:14.7]} 16. Qxb4 {[%clk 0:02:40.9]} 16... O-O {[%clk 0:02:14.9]}
17. Nc3 {[%clk 0:02:34]} 17... Nh5 {[%clk 0:02:11.9]} 18. Kh1 {[%clk 0:02:15.5]}
18... Nc5 {[%clk 0:02:00.2]} 19. Qc4 {[%clk 0:02:07.5]} 19... Bg5 {[%clk
0:01:59.9]} 20. b4 {[%clk 0:02:06.9]} 20... Nd7 {[%clk 0:01:59.6]} 21. Ne2
{[%clk 0:01:59.9]} 21... Bxc1 {[%clk 0:01:51.2]} 22. Raxc1 {[%clk 0:01:59.4]}
22... Qh4 {[%clk 0:01:51.2]} 23. Ng3 {[%clk 0:01:55.7]} 23... Nf4 {[%clk
0:01:11]} 24. Qc7 {[%clk 0:01:39.7]} 24... Nf6 {[%clk 0:01:07.3]} 25. Qxd6
{[%clk 0:01:38.1]} 25... Qg5 {[%clk 0:01:07.1]} 26. Rc6 {[%clk 0:01:29.3]} 26...
h5 {[%clk 0:01:05.1]} 27. Nf5 {[%clk 0:01:19.5]} 27... Rfe8 {[%clk 0:01:02.5]}
28. Qc5 {[%clk 0:01:11]} 28... Nd7 {[%clk 0:00:33.7]} 29. Qe3 {[%clk 0:01:09.7]}
29... g6 {[%clk 0:00:31.6]} 30. Nd6 {[%clk 0:01:04.8]} 30... Reb8 {[%clk
0:00:31.4]} 31. Qd2 {[%clk 0:00:55.5]} 31... Nf6 {[%clk 0:00:24.5]} 32. Nc4
{[%clk 0:00:46.6]} 32... Rc8 {[%clk 0:00:20.6]} 33. Rc1 {[%clk 0:00:37.1]} 33...
Rd8 {[%clk 0:00:19.2]} 34. Nb6 {[%clk 0:00:35.5]} 34... Rab8 {[%clk 0:00:18.9]}
35. Qe3 {[%clk 0:00:33.3]} 35... Kg7 {[%clk 0:00:18.7]} 36. Rc7 {[%clk
0:00:29.6]} 36... Ne8 {[%clk 0:00:18.8]} 37. Rd7 {[%clk 0:00:28.7]} 37... Rxd7
{[%clk 0:00:18.1]} 38. Nxd7 {[%clk 0:00:28.1]} 38... Rxb4 {[%clk 0:00:19]} 39.
Qc3 {[%clk 0:00:27.3]} 39... Ra4 {[%clk 0:00:15.1]} 40. Qxe5+ {[%clk 0:00:27.2]}
40... Qf6 {[%clk 0:00:15.4]} 41. Nxf6 {[%clk 0:00:26.5]} 1-0

[Event "*** SCC Grand Prix: Titled Tuesday Blitz"]
[Site "Chess.com"]
[Date "2020.06.23"]
[Round "2"]
[White "Grandelicious"]
[Black "ElusiveCat"]
[Result "1-0"]
[WhiteElo "2791"]
[BlackElo "2342"]
[TimeControl "180+1"]
[EndTime "10:18:17 PDT"]
[Termination "Grandelicious won by resignation"]

1. e4 {[%clk 0:03:00.9]} 1... c5 {[%clk 0:02:40.8]} 2. Nf3 {[%clk 0:03:00.6]}
2... d6 {[%clk 0:02:31.2]} 3. d4 {[%clk 0:02:58]} 3... cxd4 {[%clk 0:02:32.1]}
4. Nxd4 {[%clk 0:02:58.9]} 4... Nf6 {[%clk 0:02:31.9]} 5. Nc3 {[%clk 0:02:59.4]}
5... a6 {[%clk 0:02:32.1]} 6. Nb3 {[%clk 0:02:59.4]} 6... e5 {[%clk 0:02:30.1]}
7. Bg5 {[%clk 0:02:57.1]} 7... Be7 {[%clk 0:02:30.2]} 8. Bxf6 {[%clk 0:02:48.7]}
8... Bxf6 {[%clk 0:02:31.1]} 9. Nd5 {[%clk 0:02:49.4]} 9... O-O {[%clk
0:02:28.6]} 10. a4 {[%clk 0:02:44.8]} 10... Nc6 {[%clk 0:02:18.9]} 11. a5 {[%clk
0:02:35.5]} 11... Be6 {[%clk 0:02:16.6]} 12. Be2 {[%clk 0:02:33.4]} 12... Rc8
{[%clk 0:01:58.8]} 13. O-O {[%clk 0:02:26.4]} 13... Bxd5 {[%clk 0:01:29.5]} 14.
Qxd5 {[%clk 0:02:27.3]} 14... Qc7 {[%clk 0:01:17.7]} 15. c3 {[%clk 0:02:22.5]}
15... Rcd8 {[%clk 0:01:09.4]} 16. Rfd1 {[%clk 0:02:18.3]} 16... Ne7 {[%clk
0:01:07.7]} 17. Qc4 {[%clk 0:02:18.2]} 17... Qb8 {[%clk 0:01:00.3]} 18. g3
{[%clk 0:02:14.1]} 18... Rc8 {[%clk 0:00:54.9]} 19. Qd3 {[%clk 0:02:14.3]} 19...
Rfd8 {[%clk 0:00:54.9]} 20. Bf3 {[%clk 0:02:14.8]} 20... g6 {[%clk 0:00:52.6]}
21. Ra4 {[%clk 0:02:12.5]} 21... Bg7 {[%clk 0:00:37.6]} 22. Bg2 {[%clk
0:01:56.2]} 22... f5 {[%clk 0:00:33.2]} 23. exf5 {[%clk 0:01:49.6]} 23... gxf5
{[%clk 0:00:34.1]} 24. Bd5+ {[%clk 0:01:49.7]} 24... Kh8 {[%clk 0:00:32.1]} 25.
Rb4 {[%clk 0:01:47.1]} 25... Rc7 {[%clk 0:00:26.8]} 26. Qe2 {[%clk 0:01:35.9]}
26... Qc8 {[%clk 0:00:22.9]} 27. Qh5 {[%clk 0:01:27.2]} 27... Nxd5 {[%clk
0:00:19.3]} 28. Rxd5 {[%clk 0:01:28.1]} 28... Qe6 {[%clk 0:00:19.3]} 29. Qd1
{[%clk 0:01:21]} 29... f4 {[%clk 0:00:18.5]} 30. Nc5 {[%clk 0:01:17.6]} 30...
Qg6 {[%clk 0:00:14.8]} 31. Ne4 {[%clk 0:01:15.7]} 31... fxg3 {[%clk 0:00:13.3]}
32. hxg3 {[%clk 0:01:16.6]} 32... Rf7 {[%clk 0:00:13.2]} 33. Rxd6 {[%clk
0:01:14.7]} 33... Rxd6 {[%clk 0:00:13]} 34. Qxd6 {[%clk 0:01:15.6]} 34... Qf5
{[%clk 0:00:13.1]} 35. Qb8+ {[%clk 0:01:12.7]} 35... Bf8 {[%clk 0:00:12.7]} 36.
Rxb7 {[%clk 0:01:10.1]} 36... Rxb7 {[%clk 0:00:10]} 37. Qxb7 {[%clk 0:01:11]}
37... Qf3 {[%clk 0:00:10.2]} 38. Qd5 {[%clk 0:01:08.3]} 38... Qh5 {[%clk
0:00:07.1]} 39. b4 {[%clk 0:01:04.2]} 39... Qf5 {[%clk 0:00:04.5]} 40. Kg2
{[%clk 0:01:03.3]} 40... h5 {[%clk 0:00:02.3]} 41. b5 {[%clk 0:01:02.3]} 41...
h4 {[%clk 0:00:02.2]} 42. gxh4 {[%clk 0:01:02.7]} 42... Qg4+ {[%clk 0:00:02.1]}
43. Ng3 {[%clk 0:01:03.2]} 43... Qf4 {[%clk 0:00:02.3]} 44. bxa6 {[%clk
0:00:58]} 44... Qxh4 {[%clk 0:00:02]} 45. a7 {[%clk 0:00:56.3]} 1-0

[Event "*** SCC Grand Prix: Titled Tuesday Blitz"]
[Site "Chess.com"]
[Date "2020.06.23"]
[Round "2"]
[White "Gerasimenyuk_Miha"]
[Black "Chernobay_Artem"]
[Result "0-1"]
[WhiteElo "2320"]
[BlackElo "2604"]
[TimeControl "180+1"]
[EndTime "10:18:17 PDT"]
[Termination "Chernobay_Artem won by resignation"]

1. d4 {[%clk 0:02:31.3]} 1... d6 {[%clk 0:02:58.9]} 2. Nf3 {[%clk 0:02:26.3]}
2... Nf6 {[%clk 0:02:56.8]} 3. Bg5 {[%clk 0:02:26.8]} 3... Nbd7 {[%clk
0:02:55.2]} 4. e3 {[%clk 0:02:27.1]} 4... e5 {[%clk 0:02:54.1]} 5. Nbd2 {[%clk
0:02:27.5]} 5... Be7 {[%clk 0:02:54.1]} 6. c3 {[%clk 0:02:27.7]} 6... O-O {[%clk
0:02:54.3]} 7. Bd3 {[%clk 0:02:27.8]} 7... b6 {[%clk 0:02:53]} 8. Qc2 {[%clk
0:02:26.6]} 8... Bb7 {[%clk 0:02:52.3]} 9. h4 {[%clk 0:02:26]} 9... Re8 {[%clk
0:02:48.2]} 10. dxe5 {[%clk 0:02:25.3]} 10... dxe5 {[%clk 0:02:47.9]} 11. Bxf6
{[%clk 0:02:22]} 11... Nxf6 {[%clk 0:02:45.6]} 12. Nxe5 {[%clk 0:02:21]} 12...
Bc5 {[%clk 0:02:37.1]} 13. Ndf3 {[%clk 0:02:17.2]} 13... a5 {[%clk 0:02:06.4]}
14. O-O-O {[%clk 0:02:16.4]} 14... Qe7 {[%clk 0:02:04.9]} 15. Bc4 {[%clk
0:02:00.2]} 15... Rf8 {[%clk 0:02:04.7]} 16. Nxf7 {[%clk 0:01:51]} 16... Rxf7
{[%clk 0:02:03.8]} 17. Ng5 {[%clk 0:01:49.4]} 17... Rf8 {[%clk 0:02:03.2]} 18.
Qb3 {[%clk 0:01:44.7]} 18... h6 {[%clk 0:01:54.6]} 19. Nxf7 {[%clk 0:01:34.1]}
19... Rxf7 {[%clk 0:01:54.7]} 20. Bxf7+ {[%clk 0:01:31.9]} 20... Qxf7 {[%clk
0:01:55]} 21. Rd8+ {[%clk 0:01:28]} 21... Bf8 {[%clk 0:01:55.6]} 22. f3 {[%clk
0:01:16.5]} 22... Bd5 {[%clk 0:01:50.3]} 23. Qb5 {[%clk 0:01:11.6]} 23... Bxa2
{[%clk 0:01:44.1]} 24. e4 {[%clk 0:01:11.8]} 24... Be6 {[%clk 0:01:30.7]} 25.
Rhd1 {[%clk 0:01:07.7]} 25... Kh7 {[%clk 0:01:28.7]} 26. g4 {[%clk 0:01:07]}
26... Bc5 {[%clk 0:01:23.6]} 27. g5 {[%clk 0:00:57.8]} 27... Nh5 {[%clk
0:01:22]} 28. Qd3 {[%clk 0:00:52.9]} 28... Nf4 {[%clk 0:01:10.6]} 29. Qa6 {[%clk
0:00:52.3]} 29... Ba2 {[%clk 0:00:58.7]} 30. Qa8 {[%clk 0:00:41]} 30... Be3+
{[%clk 0:00:57.7]} 31. R1d2 {[%clk 0:00:39.4]} 31... Ne6 {[%clk 0:00:34]} 32.
Rh8+ {[%clk 0:00:37.5]} 32... Kg6 {[%clk 0:00:34.3]} 33. Qc8 {[%clk 0:00:33.5]}
33... Bxd2+ {[%clk 0:00:24.4]} 34. Kxd2 {[%clk 0:00:32.7]} 34... Qf4+ {[%clk
0:00:23.7]} 35. Ke2 {[%clk 0:00:29]} 35... Bc4+ {[%clk 0:00:21.6]} 36. Kd1
{[%clk 0:00:25]} 36... Qxf3+ {[%clk 0:00:20.6]} 37. Kc2 {[%clk 0:00:24.3]} 37...
Qxe4+ {[%clk 0:00:20.3]} 0-1

[Event "*** SCC Grand Prix: Titled Tuesday Blitz"]
[Site "Chess.com"]
[Date "2020.06.23"]
[Round "2"]
[White "colegiodemadrid"]
[Black "metalbattler"]
[Result "1/2-1/2"]
[WhiteElo "2368"]
[BlackElo "2063"]
[TimeControl "180+1"]
[EndTime "10:18:18 PDT"]
[Termination "Game drawn by repetition"]

1. e4 {[%clk 0:03:00.9]} 1... d5 {[%clk 0:03:00]} 2. exd5 {[%clk 0:03:00.7]}
2... Nf6 {[%clk 0:03:00.6]} 3. Be2 {[%clk 0:02:59.5]} 3... Nxd5 {[%clk
0:02:59.6]} 4. d4 {[%clk 0:02:59.9]} 4... Bf5 {[%clk 0:02:59.6]} 5. Nf3 {[%clk
0:02:58.2]} 5... e6 {[%clk 0:02:59.9]} 6. O-O {[%clk 0:02:57.8]} 6... Be7 {[%clk
0:03:00]} 7. a3 {[%clk 0:02:57.4]} 7... O-O {[%clk 0:03:00.1]} 8. c4 {[%clk
0:02:56.7]} 8... Nf6 {[%clk 0:03:00.5]} 9. Nc3 {[%clk 0:02:56.7]} 9... Ne4
{[%clk 0:02:58.7]} 10. Be3 {[%clk 0:02:48.7]} 10... Nd7 {[%clk 0:02:54.3]} 11.
Qb3 {[%clk 0:02:46.1]} 11... Nxc3 {[%clk 0:02:51.7]} 12. Qxc3 {[%clk 0:02:45.5]}
12... Nf6 {[%clk 0:02:47.9]} 13. Qb3 {[%clk 0:02:27.7]} 13... Rb8 {[%clk
0:02:43.3]} 14. Rac1 {[%clk 0:02:25.7]} 14... h6 {[%clk 0:02:29.7]} 15. Rfd1
{[%clk 0:02:24.6]} 15... c6 {[%clk 0:02:29.2]} 16. Qa4 {[%clk 0:02:22]} 16... a6
{[%clk 0:02:24.2]} 17. h3 {[%clk 0:02:20.2]} 17... Bd6 {[%clk 0:02:20.1]} 18. b4
{[%clk 0:02:16.5]} 18... Qe7 {[%clk 0:02:17.9]} 19. Bf1 {[%clk 0:02:07]} 19...
Bc7 {[%clk 0:02:14.3]} 20. Re1 {[%clk 0:02:06.1]} 20... Rbd8 {[%clk 0:02:09.4]}
21. Rcd1 {[%clk 0:01:56]} 21... Bb8 {[%clk 0:02:03.6]} 22. Qb3 {[%clk
0:01:51.3]} 22... Qc7 {[%clk 0:02:00.7]} 23. Ne5 {[%clk 0:01:47]} 23... Nd7
{[%clk 0:01:55.6]} 24. f4 {[%clk 0:01:43.4]} 24... Nf6 {[%clk 0:01:49.9]} 25. a4
{[%clk 0:01:07]} 25... Ne4 {[%clk 0:01:46.8]} 26. b5 {[%clk 0:01:03.2]} 26...
axb5 {[%clk 0:01:38.5]} 27. axb5 {[%clk 0:01:02.5]} 27... f6 {[%clk 0:01:38.8]}
28. Nf3 {[%clk 0:01:01.1]} 28... Ng3 {[%clk 0:01:31.9]} 29. bxc6 {[%clk
0:00:48.6]} 29... bxc6 {[%clk 0:01:30.5]} 30. Rb1 {[%clk 0:00:47.9]} 30... Bxb1
{[%clk 0:01:29.7]} 31. Rxb1 {[%clk 0:00:47.1]} 31... Nf5 {[%clk 0:01:28.8]} 32.
Bd2 {[%clk 0:00:38.7]} 32... Nxd4 {[%clk 0:01:23.3]} 33. Nxd4 {[%clk 0:00:37.1]}
33... Rxd4 {[%clk 0:01:24.2]} 34. Be3 {[%clk 0:00:36]} 34... Rd7 {[%clk
0:01:16.9]} 35. Bc5 {[%clk 0:00:26.7]} 35... Ba7 {[%clk 0:01:14.2]} 36. Bxa7
{[%clk 0:00:24.5]} 36... Qxa7+ {[%clk 0:01:15.1]} 37. Kh2 {[%clk 0:00:25.1]}
37... Rfd8 {[%clk 0:01:13.3]} 38. Re1 {[%clk 0:00:24.6]} 38... Qd4 {[%clk
0:01:10.9]} 39. c5 {[%clk 0:00:24.7]} 39... Qxf4+ {[%clk 0:01:10]} 40. Kh1
{[%clk 0:00:24.3]} 40... Rd1 {[%clk 0:01:03.6]} 41. Rxd1 {[%clk 0:00:22.4]}
41... Rd5 {[%clk 0:01:00.1]} 42. Rxd5 {[%clk 0:00:20.5]} 42... exd5 {[%clk
0:01:01]} 43. Qb7 {[%clk 0:00:19.5]} 43... Qxf1+ {[%clk 0:01:00.3]} 44. Kh2
{[%clk 0:00:20]} 44... Qf4+ {[%clk 0:01:00]} 45. Kh1 {[%clk 0:00:20.4]} 45...
Qc1+ {[%clk 0:01:00.2]} 46. Kh2 {[%clk 0:00:20.3]} 46... Qxc5 {[%clk 0:01:00.7]}
47. Qc8+ {[%clk 0:00:20.8]} 47... Kf7 {[%clk 0:00:57.5]} 48. Qd7+ {[%clk
0:00:21.1]} 48... Qe7 {[%clk 0:00:56.9]} 49. Qxc6 {[%clk 0:00:20.7]} 49... Qe5+
{[%clk 0:00:57.1]} 50. Kh1 {[%clk 0:00:19.9]} 50... d4 {[%clk 0:00:57.1]} 51.
Qd7+ {[%clk 0:00:20.2]} 51... Kg6 {[%clk 0:00:57.3]} 52. Qg4+ {[%clk 0:00:20.6]}
52... Kf7 {[%clk 0:00:56.4]} 53. Qd7+ {[%clk 0:00:20.6]} 53... Kf8 {[%clk
0:00:57]} 54. Qd8+ {[%clk 0:00:20]} 54... Kf7 {[%clk 0:00:57.4]} 55. Qd7+ {[%clk
0:00:20.4]} 1/2-1/2

[Event "*** SCC Grand Prix: Titled Tuesday Blitz"]
[Site "Chess.com"]
[Date "2020.06.23"]
[Round "2"]
[White "chesslh19"]
[Black "Nathan_Filgueiras"]
[Result "0-1"]
[WhiteElo "2118"]
[BlackElo "2400"]
[TimeControl "180+1"]
[EndTime "10:18:19 PDT"]
[Termination "Nathan_Filgueiras won by checkmate"]

1. e4 {[%clk 0:03:00.9]} 1... c5 {[%clk 0:02:58.5]} 2. Nf3 {[%clk 0:03:01.1]}
2... Nc6 {[%clk 0:02:57]} 3. d4 {[%clk 0:03:01.8]} 3... cxd4 {[%clk 0:02:57.9]}
4. Nxd4 {[%clk 0:03:02.4]} 4... d5 {[%clk 0:02:56.9]} 5. Bb5 {[%clk 0:02:54]}
5... dxe4 {[%clk 0:02:57]} 6. Nxc6 {[%clk 0:02:50.7]} 6... Qxd1+ {[%clk
0:02:56.2]} 7. Kxd1 {[%clk 0:02:50.9]} 7... a6 {[%clk 0:02:56.9]} 8. Nxe7+
{[%clk 0:01:59.8]} 8... Kxe7 {[%clk 0:02:38]} 9. Be2 {[%clk 0:01:59.2]} 9... f5
{[%clk 0:02:35.2]} 10. Bg5+ {[%clk 0:01:57.5]} 10... Nf6 {[%clk 0:02:34.9]} 11.
Nc3 {[%clk 0:01:57]} 11... Be6 {[%clk 0:02:35.2]} 12. f3 {[%clk 0:01:46]} 12...
Rd8+ {[%clk 0:02:31]} 13. Ke1 {[%clk 0:01:45.8]} 13... exf3 {[%clk 0:01:54.1]}
14. Bxf3 {[%clk 0:01:44.4]} 14... b5 {[%clk 0:01:54.6]} 15. Rd1 {[%clk
0:01:35.7]} 15... Rxd1+ {[%clk 0:01:50.7]} 16. Kxd1 {[%clk 0:01:35.1]} 16... h6
{[%clk 0:01:51.3]} 17. Bxf6+ {[%clk 0:01:23.6]} 17... Kxf6 {[%clk 0:01:52.2]}
18. Nd5+ {[%clk 0:01:19.1]} 18... Bxd5 {[%clk 0:01:26.8]} 19. Bxd5 {[%clk
0:01:18.8]} 19... Bc5 {[%clk 0:01:27.7]} 20. Bf3 {[%clk 0:01:04.5]} 20... Rd8+
{[%clk 0:01:25.6]} 21. Kc1 {[%clk 0:01:03.7]} 21... g5 {[%clk 0:01:23.8]} 22. h3
{[%clk 0:00:58.6]} 22... Kg6 {[%clk 0:01:01.3]} 23. Rd1 {[%clk 0:00:58]} 23...
Re8 {[%clk 0:01:00.1]} 24. c3 {[%clk 0:00:46.9]} 24... h5 {[%clk 0:00:58.6]} 25.
Rd5 {[%clk 0:00:44.4]} 25... Be3+ {[%clk 0:00:56.6]} 26. Kc2 {[%clk 0:00:39.3]}
26... Re6 {[%clk 0:00:57]} 27. g4 {[%clk 0:00:27.3]} 27... fxg4 {[%clk
0:00:52.3]} 28. hxg4 {[%clk 0:00:27.6]} 28... h4 {[%clk 0:00:52.8]} 29. Rd8
{[%clk 0:00:25.4]} 29... Bf4 {[%clk 0:00:47]} 30. Rc8 {[%clk 0:00:22.6]} 30...
Re3 {[%clk 0:00:41.2]} 31. Rc6+ {[%clk 0:00:22.3]} 31... Kg7 {[%clk 0:00:40.9]}
32. Bd5 {[%clk 0:00:20.7]} 32... Re2+ {[%clk 0:00:35.5]} 33. Kd3 {[%clk
0:00:14]} 33... Rxb2 {[%clk 0:00:32.5]} 34. Rxa6 {[%clk 0:00:14.1]} 34... h3
{[%clk 0:00:31.3]} 35. Ra7+ {[%clk 0:00:13.3]} 35... Kf6 {[%clk 0:00:31.1]} 36.
Ra6+ {[%clk 0:00:13.1]} 36... Ke5 {[%clk 0:00:28]} 37. Bb7 {[%clk 0:00:11]}
37... Rd2# {[%clk 0:00:25.3]} 0-1

[Event "*** SCC Grand Prix: Titled Tuesday Blitz"]
[Site "Chess.com"]
[Date "2020.06.23"]
[Round "2"]
[White "WelshTiger"]
[Black "Yoshikrov"]
[Result "0-1"]
[WhiteElo "2359"]
[BlackElo "2014"]
[TimeControl "180+1"]
[EndTime "10:18:19 PDT"]
[Termination "Yoshikrov won by checkmate"]

1. e4 {[%clk 0:03:00.9]} 1... c5 {[%clk 0:02:58.2]} 2. Nf3 {[%clk 0:03:01.1]}
2... d6 {[%clk 0:02:57.5]} 3. d4 {[%clk 0:03:00.6]} 3... cxd4 {[%clk 0:02:57.7]}
4. Nxd4 {[%clk 0:03:01.5]} 4... Nf6 {[%clk 0:02:58.2]} 5. Nc3 {[%clk 0:03:02.1]}
5... a6 {[%clk 0:02:58.6]} 6. Be2 {[%clk 0:03:02.1]} 6... e5 {[%clk 0:02:57.4]}
7. Nf3 {[%clk 0:03:02.3]} 7... Be6 {[%clk 0:02:57.7]} 8. Bg5 {[%clk 0:03:01]}
8... Be7 {[%clk 0:02:57.8]} 9. Bxf6 {[%clk 0:03:00.9]} 9... Bxf6 {[%clk
0:02:57.9]} 10. Nd5 {[%clk 0:03:01.5]} 10... Bxd5 {[%clk 0:02:57.9]} 11. Qxd5
{[%clk 0:03:01]} 11... Qc7 {[%clk 0:02:57.9]} 12. O-O-O {[%clk 0:02:48]} 12...
Be7 {[%clk 0:02:51.3]} 13. Kb1 {[%clk 0:02:22]} 13... Nd7 {[%clk 0:02:37.7]} 14.
Rd3 {[%clk 0:02:07.5]} 14... Nf6 {[%clk 0:02:34.5]} 15. Qb3 {[%clk 0:01:52.9]}
15... Nxe4 {[%clk 0:02:28.1]} 16. Qa4+ {[%clk 0:01:16.5]} 16... Qc6 {[%clk
0:02:23.8]} 17. Qxc6+ {[%clk 0:01:12.6]} 17... bxc6 {[%clk 0:02:23.5]} 18. Rf1
{[%clk 0:01:12.9]} 18... O-O {[%clk 0:02:18.3]} 19. Ra3 {[%clk 0:01:07.8]} 19...
a5 {[%clk 0:02:13.9]} 20. Bd3 {[%clk 0:01:08.1]} 20... Nf6 {[%clk 0:02:09.7]}
21. Nd2 {[%clk 0:01:00.5]} 21... d5 {[%clk 0:02:08.5]} 22. f3 {[%clk 0:00:59]}
22... Bxa3 {[%clk 0:02:08.1]} 23. bxa3 {[%clk 0:00:54.6]} 23... Rab8+ {[%clk
0:02:08.3]} 24. Kc1 {[%clk 0:00:54.8]} 24... Rfe8 {[%clk 0:01:52.3]} 25. Re1
{[%clk 0:00:53.9]} 25... c5 {[%clk 0:01:49.6]} 26. Bf1 {[%clk 0:00:46.4]} 26...
c4 {[%clk 0:01:45.4]} 27. Nb1 {[%clk 0:00:43.3]} 27... Rbc8 {[%clk 0:01:40.2]}
28. Nc3 {[%clk 0:00:43.1]} 28... d4 {[%clk 0:01:36.7]} 29. Na4 {[%clk
0:00:43.3]} 29... Rc6 {[%clk 0:01:32.7]} 30. Kd2 {[%clk 0:00:37.7]} 30... g6
{[%clk 0:01:32]} 31. Rb1 {[%clk 0:00:37.7]} 31... Rd8 {[%clk 0:01:24.9]} 32. Rb7
{[%clk 0:00:36.9]} 32... Nd5 {[%clk 0:01:20.6]} 33. g3 {[%clk 0:00:37.2]} 33...
Ne3 {[%clk 0:01:20.5]} 34. Be2 {[%clk 0:00:32.5]} 34... f5 {[%clk 0:01:17.8]}
35. Re7 {[%clk 0:00:27.8]} 35... Rd5 {[%clk 0:01:14.4]} 36. Nc3 {[%clk
0:00:24.5]} 36... dxc3+ {[%clk 0:01:10.6]} 37. Kxe3 {[%clk 0:00:24.9]} 37... Rd2
{[%clk 0:01:02.6]} 38. Rxe5 {[%clk 0:00:21.8]} 38... Rxc2 {[%clk 0:01:02.2]} 39.
Rxa5 {[%clk 0:00:21.7]} 39... Rxa2 {[%clk 0:01:02.1]} 40. h4 {[%clk 0:00:21.1]}
40... Re6+ {[%clk 0:01:02]} 41. Kf4 {[%clk 0:00:20.4]} 41... Raxe2 {[%clk
0:01:01.7]} 42. Ra8+ {[%clk 0:00:19.6]} 42... Kf7 {[%clk 0:01:01.1]} 43. Rc8
{[%clk 0:00:18.8]} 43... c2 {[%clk 0:00:59]} 44. Rxc4 {[%clk 0:00:18.9]} 44...
Ra6 {[%clk 0:00:59]} 45. a4 {[%clk 0:00:17.8]} 45... h6 {[%clk 0:00:55.7]} 46.
Rc7+ {[%clk 0:00:17.2]} 46... Kf6 {[%clk 0:00:54.9]} 47. Rc4 {[%clk 0:00:17.7]}
47... g5+ {[%clk 0:00:54.6]} 48. hxg5+ {[%clk 0:00:17.2]} 48... hxg5# {[%clk
0:00:55.5]} 0-1

[Event "*** SCC Grand Prix: Titled Tuesday Blitz"]
[Site "Chess.com"]
[Date "2020.06.23"]
[Round "2"]
[White "ValeriyGrinev"]
[Black "Matibar"]
[Result "1/2-1/2"]
[WhiteElo "2548"]
[BlackElo "2816"]
[TimeControl "180+1"]
[EndTime "10:18:21 PDT"]
[Termination "Game drawn by repetition"]

1. d4 {[%clk 0:03:00.9]} 1... f5 {[%clk 0:02:58.4]} 2. g3 {[%clk 0:03:01.3]}
2... Nf6 {[%clk 0:02:58.3]} 3. Bg2 {[%clk 0:03:02]} 3... g6 {[%clk 0:02:58.6]}
4. Nf3 {[%clk 0:03:02.1]} 4... Bg7 {[%clk 0:02:59.2]} 5. b3 {[%clk 0:03:02.7]}
5... O-O {[%clk 0:02:59.2]} 6. Bb2 {[%clk 0:03:03.4]} 6... Ne4 {[%clk
0:02:54.6]} 7. O-O {[%clk 0:02:52.7]} 7... d6 {[%clk 0:02:48.5]} 8. Nbd2 {[%clk
0:02:44.2]} 8... Nc6 {[%clk 0:02:46.4]} 9. Ne1 {[%clk 0:02:32.2]} 9... Ng5
{[%clk 0:02:44.9]} 10. e3 {[%clk 0:02:27]} 10... e5 {[%clk 0:02:25.8]} 11. Bxc6
{[%clk 0:01:59.4]} 11... bxc6 {[%clk 0:02:25.3]} 12. dxe5 {[%clk 0:02:00.1]}
12... dxe5 {[%clk 0:02:24.9]} 13. f4 {[%clk 0:01:38.2]} 13... exf4 {[%clk
0:01:46.7]} 14. Bxg7 {[%clk 0:01:39.1]} 14... Kxg7 {[%clk 0:01:46.4]} 15. exf4
{[%clk 0:01:31.4]} 15... Nf7 {[%clk 0:01:43.5]} 16. Nc4 {[%clk 0:01:29.1]} 16...
Be6 {[%clk 0:01:39.2]} 17. Nf3 {[%clk 0:01:24.8]} 17... Bxc4 {[%clk 0:01:29.5]}
18. bxc4 {[%clk 0:01:25.7]} 18... Qf6 {[%clk 0:01:29.2]} 19. Qd4 {[%clk
0:01:24.6]} 19... Rfd8 {[%clk 0:01:26.8]} 20. Qxf6+ {[%clk 0:01:24.5]} 20...
Kxf6 {[%clk 0:01:26.8]} 21. Rfd1 {[%clk 0:01:23.5]} 21... Rd6 {[%clk 0:01:13.2]}
22. Rxd6+ {[%clk 0:01:20.4]} 22... cxd6 {[%clk 0:01:01.5]} 23. Rb1 {[%clk
0:01:20.5]} 23... Re8 {[%clk 0:01:01.2]} 24. Kf2 {[%clk 0:01:18.7]} 24... Re4
{[%clk 0:00:58]} 25. Nd2 {[%clk 0:01:16.5]} 25... Re7 {[%clk 0:00:58]} 26. Rb8
{[%clk 0:01:15]} 26... c5 {[%clk 0:00:35.4]} 27. a4 {[%clk 0:01:07.8]} 27... Nh6
{[%clk 0:00:33.8]} 28. h3 {[%clk 0:01:07.2]} 28... Kf7 {[%clk 0:00:33.5]} 29. a5
{[%clk 0:01:04.9]} 29... Ng8 {[%clk 0:00:34]} 30. Nf3 {[%clk 0:01:03.3]} 30...
Nf6 {[%clk 0:00:34]} 31. Ng5+ {[%clk 0:01:03.3]} 31... Kg7 {[%clk 0:00:33.9]}
32. a6 {[%clk 0:00:57.2]} 32... h6 {[%clk 0:00:33.8]} 33. Rb7 {[%clk 0:00:56.6]}
33... Kf8 {[%clk 0:00:33.2]} 34. Nf3 {[%clk 0:00:50.8]} 34... Ne4+ {[%clk
0:00:32]} 35. Kg2 {[%clk 0:00:49.2]} 35... Ke8 {[%clk 0:00:31.8]} 36. Nh4 {[%clk
0:00:46.4]} 36... Kd8 {[%clk 0:00:30.7]} 37. Rxe7 {[%clk 0:00:42.9]} 37... Kxe7
{[%clk 0:00:30.7]} 38. Nxg6+ {[%clk 0:00:43.8]} 38... Kf6 {[%clk 0:00:30.4]} 39.
Nf8 {[%clk 0:00:42.4]} 39... Ke7 {[%clk 0:00:27.4]} 40. Ng6+ {[%clk 0:00:41]}
40... Kf6 {[%clk 0:00:20]} 41. Nf8 {[%clk 0:00:25]} 41... Ke7 {[%clk 0:00:19.5]}
42. Ng6+ {[%clk 0:00:25]} 1/2-1/2